[Event "Early-Titled-Tuesday-Blitz-April-16-2024"]
[Site "Chess.com"]
[Date "2024.04.16"]
[Round "7"]
[White "Salem-AR"]
[Black "frederiksvane"]
[Result "0-1"]
[WhiteElo "3025"]
[BlackElo "3072"]
[TimeControl "180+1"]
[EndTime "9:20:34 PDT"]
[Termination "frederiksvane won by checkmate"]

1. d4 {[%clk 0:03:00.9]} 1... Nf6 {[%clk 0:02:59.9]} 2. Nf3 {[%clk 0:03:01.7]}
2... e6 {[%clk 0:02:59.9]} 3. e3 {[%clk 0:03:02.6]} 3... b6 {[%clk 0:02:59]} 4.
Bd3 {[%clk 0:03:03.3]} 4... Bb7 {[%clk 0:02:59.5]} 5. O-O {[%clk 0:03:04]} 5...
Be7 {[%clk 0:03:00.1]} 6. c4 {[%clk 0:03:02.8]} 6... O-O {[%clk 0:02:57.9]} 7.
Nc3 {[%clk 0:03:03.5]} 7... d5 {[%clk 0:02:46.8]} 8. cxd5 {[%clk 0:03:04.4]}
8... exd5 {[%clk 0:02:47.3]} 9. a3 {[%clk 0:03:04.2]} 9... Nbd7 {[%clk
0:02:44.3]} 10. b4 {[%clk 0:03:04.4]} 10... c6 {[%clk 0:02:38.9]} 11. Qb3 {[%clk
0:03:03.2]} 11... Bd6 {[%clk 0:02:29.4]} 12. Re1 {[%clk 0:02:56.6]} 12... Re8
{[%clk 0:02:28]} 13. e4 {[%clk 0:02:41.5]} 13... dxe4 {[%clk 0:02:05.7]} 14.
Nxe4 {[%clk 0:02:41.7]} 14... Nxe4 {[%clk 0:02:04.5]} 15. Bxe4 {[%clk
0:02:39.8]} 15... Nf6 {[%clk 0:02:04.9]} 16. Bg5 {[%clk 0:02:39.3]} 16... h6
{[%clk 0:02:05.3]} 17. Bg6 {[%clk 0:02:15.1]} 17... Rf8 {[%clk 0:01:17.8]} 18.
Bh4 {[%clk 0:02:12.7]} 18... Bc8 {[%clk 0:01:06.1]} 19. Rac1 {[%clk 0:01:51.2]}
19... Be6 {[%clk 0:00:37]} 20. Rxe6 {[%clk 0:01:51.2]} 20... fxe6 {[%clk
0:00:37.9]} 21. Ne5 {[%clk 0:01:43.6]} 21... Bxe5 {[%clk 0:00:33.3]} 22. dxe5
{[%clk 0:01:43.8]} 22... Qd5 {[%clk 0:00:33.8]} 23. Qg3 {[%clk 0:01:10.7]} 23...
Nd7 {[%clk 0:00:34.1]} 24. Re1 {[%clk 0:00:50.1]} 24... Qd2 {[%clk 0:00:31.8]}
25. Rf1 {[%clk 0:00:50.1]} 25... Qf4 {[%clk 0:00:30.2]} 26. Qc3 {[%clk 0:00:40]}
26... Qxh4 {[%clk 0:00:26.1]} 27. Qxc6 {[%clk 0:00:38.8]} 27... Qe7 {[%clk
0:00:25.9]} 28. f4 {[%clk 0:00:39.1]} 28... Rac8 {[%clk 0:00:25.1]} 29. Qb7
{[%clk 0:00:39.9]} 29... Rfd8 {[%clk 0:00:12.4]} 30. Rd1 {[%clk 0:00:40.3]}
30... Qf8 {[%clk 0:00:09.8]} 31. g3 {[%clk 0:00:39.4]} 31... Nxe5 {[%clk
0:00:09.5]} 32. Rxd8 {[%clk 0:00:34.4]} 32... Rxd8 {[%clk 0:00:10.4]} 33. fxe5
{[%clk 0:00:33.3]} 33... Rd1+ {[%clk 0:00:10.2]} 34. Kg2 {[%clk 0:00:34.2]}
34... Qf1# {[%clk 0:00:10.3]} 0-1

[Event "Early-Titled-Tuesday-Blitz-April-16-2024"]
[Site "Chess.com"]
[Date "2024.04.16"]
[Round "7"]
[White "dropstoneDP"]
[Black "ContrVersia"]
[Result "1-0"]
[WhiteElo "3070"]
[BlackElo "2897"]
[TimeControl "180+1"]
[EndTime "9:20:34 PDT"]
[Termination "dropstoneDP won by resignation"]

1. e4 {[%clk 0:03:00.9]} 1... c5 {[%clk 0:03:00.1]} 2. Nf3 {[%clk 0:03:00.2]}
2... a6 {[%clk 0:03:00.4]} 3. g3 {[%clk 0:02:59.6]} 3... b5 {[%clk 0:03:00.2]}
4. d4 {[%clk 0:02:56.5]} 4... cxd4 {[%clk 0:02:59.1]} 5. Nxd4 {[%clk 0:02:57.4]}
5... Bb7 {[%clk 0:02:59.3]} 6. Bg2 {[%clk 0:02:58]} 6... Nf6 {[%clk 0:02:51.2]}
7. Qe2 {[%clk 0:02:57.8]} 7... e5 {[%clk 0:02:50.6]} 8. Nf5 {[%clk 0:02:54.6]}
8... g6 {[%clk 0:02:44.8]} 9. Ne3 {[%clk 0:02:54.4]} 9... d6 {[%clk 0:02:43.9]}
10. Nc3 {[%clk 0:02:51.9]} 10... Nbd7 {[%clk 0:02:43.8]} 11. O-O {[%clk
0:02:51.3]} 11... Be7 {[%clk 0:02:38.9]} 12. a4 {[%clk 0:02:49.3]} 12... b4
{[%clk 0:02:38.8]} 13. Ncd5 {[%clk 0:02:49.9]} 13... Bxd5 {[%clk 0:02:37.5]} 14.
Nxd5 {[%clk 0:02:48.7]} 14... Nxd5 {[%clk 0:02:37.5]} 15. exd5 {[%clk
0:02:49.6]} 15... a5 {[%clk 0:02:33.1]} 16. Bh6 {[%clk 0:02:47]} 16... f5 {[%clk
0:02:19.9]} 17. f4 {[%clk 0:02:23.8]} 17... Bf8 {[%clk 0:02:01.2]} 18. Bg5
{[%clk 0:02:22.2]} 18... Qb6+ {[%clk 0:01:54.2]} 19. Kh1 {[%clk 0:02:21.1]}
19... Bg7 {[%clk 0:01:54.8]} 20. fxe5 {[%clk 0:02:15.9]} 20... Nxe5 {[%clk
0:01:54.7]} 21. g4 {[%clk 0:02:11]} 21... fxg4 {[%clk 0:01:54.7]} 22. c4 {[%clk
0:01:53.4]} 22... h6 {[%clk 0:01:39.6]} 23. Be3 {[%clk 0:01:50.7]} 23... Qa6
{[%clk 0:01:33.1]} 24. Bd4 {[%clk 0:01:36.4]} 24... h5 {[%clk 0:01:19.2]} 25.
Qe4 {[%clk 0:01:34.6]} 25... Ra7 {[%clk 0:00:56.2]} 26. c5 {[%clk 0:01:30.4]}
26... Re7 {[%clk 0:00:56.1]} 27. Rae1 {[%clk 0:01:11.9]} 27... Kd8 {[%clk
0:00:52.8]} 28. Qc2 {[%clk 0:01:05.4]} 28... Rhe8 {[%clk 0:00:49.7]} 29. cxd6
{[%clk 0:01:03]} 29... Qxd6 {[%clk 0:00:50.6]} 30. Bc5 {[%clk 0:01:02.5]} 30...
Rc7 {[%clk 0:00:49.2]} 31. Rc1 {[%clk 0:00:58.1]} 31... Rxc5 {[%clk 0:00:31.8]}
32. Qxc5 {[%clk 0:00:59]} 32... Qxc5 {[%clk 0:00:32.6]} 33. Rxc5 {[%clk
0:00:59.4]} 33... Nd3 {[%clk 0:00:33.5]} 34. Rxa5 {[%clk 0:00:59.2]} 34... Bd4
{[%clk 0:00:20.8]} 35. d6 {[%clk 0:00:54]} 35... Kd7 {[%clk 0:00:07.4]} 36. Rf7+
{[%clk 0:00:53.8]} 36... Kxd6 {[%clk 0:00:04.7]} 37. Rd5+ {[%clk 0:00:54.3]}
37... Ke6 {[%clk 0:00:05.1]} 38. Rxd4 {[%clk 0:00:54.9]} 38... Kxf7 {[%clk
0:00:05.5]} 39. Bd5+ {[%clk 0:00:52.3]} 1-0

[Event "Early-Titled-Tuesday-Blitz-April-16-2024"]
[Site "Chess.com"]
[Date "2024.04.16"]
[Round "7"]
[White "Ramil_Faizrakhmanov"]
[Black "mishanick"]
[Result "1-0"]
[WhiteElo "2912"]
[BlackElo "3049"]
[TimeControl "180+1"]
[EndTime "9:20:35 PDT"]
[Termination "Ramil_Faizrakhmanov won by resignation"]

1. d4 {[%clk 0:03:00.1]} 1... Nf6 {[%clk 0:02:56.3]} 2. c4 {[%clk 0:03:00.3]}
2... e6 {[%clk 0:02:56.9]} 3. Nf3 {[%clk 0:03:00.6]} 3... d5 {[%clk 0:02:57.4]}
4. Nc3 {[%clk 0:03:00.9]} 4... Bb4 {[%clk 0:02:56.5]} 5. Qa4+ {[%clk 0:02:59.4]}
5... Nc6 {[%clk 0:02:56.5]} 6. e3 {[%clk 0:02:59.5]} 6... O-O {[%clk 0:02:56.1]}
7. Qc2 {[%clk 0:02:58.9]} 7... Re8 {[%clk 0:02:55.3]} 8. Bd2 {[%clk 0:02:58.1]}
8... Bf8 {[%clk 0:02:55.7]} 9. Be2 {[%clk 0:02:54]} 9... Nb4 {[%clk 0:02:52.6]}
10. Qd1 {[%clk 0:02:53.9]} 10... dxc4 {[%clk 0:02:52.8]} 11. Bxc4 {[%clk
0:02:53.8]} 11... b6 {[%clk 0:02:52.8]} 12. O-O {[%clk 0:02:53.7]} 12... Bb7
{[%clk 0:02:53.3]} 13. a3 {[%clk 0:02:52.1]} 13... Nbd5 {[%clk 0:02:52.9]} 14.
Qe2 {[%clk 0:02:48.4]} 14... c5 {[%clk 0:02:48.4]} 15. dxc5 {[%clk 0:02:46]}
15... Bxc5 {[%clk 0:02:47.3]} 16. Rfd1 {[%clk 0:02:46]} 16... Qe7 {[%clk
0:02:43.3]} 17. Nxd5 {[%clk 0:02:45.1]} 17... Nxd5 {[%clk 0:02:39.8]} 18. e4
{[%clk 0:02:42.3]} 18... Nf6 {[%clk 0:02:39.6]} 19. b4 {[%clk 0:02:38.3]} 19...
b5 {[%clk 0:02:03.2]} 20. Bxb5 {[%clk 0:02:32.6]} 20... Bb6 {[%clk 0:02:03.4]}
21. Bg5 {[%clk 0:02:12]} 21... h6 {[%clk 0:01:25.6]} 22. Bxf6 {[%clk 0:02:10.2]}
22... Qxf6 {[%clk 0:01:26.5]} 23. Bxe8 {[%clk 0:02:10.5]} 23... Rxe8 {[%clk
0:01:27]} 24. a4 {[%clk 0:02:02.5]} 24... Ba8 {[%clk 0:01:00.5]} 25. Rac1 {[%clk
0:01:55.2]} 25... Rb8 {[%clk 0:00:53]} 26. a5 {[%clk 0:01:34.8]} 26... Bd8
{[%clk 0:00:51.5]} 27. Qc4 {[%clk 0:01:28.7]} 27... Qg6 {[%clk 0:00:42.5]} 28.
Ne5 {[%clk 0:01:25]} 28... Qxe4 {[%clk 0:00:16.8]} 29. Qxe4 {[%clk 0:01:21.2]}
29... Bxe4 {[%clk 0:00:17.7]} 30. Nc6 {[%clk 0:01:18.7]} 30... Bxc6 {[%clk
0:00:17.4]} 31. Rxc6 {[%clk 0:01:19.6]} 31... Bf6 {[%clk 0:00:13.6]} 32. Rb1
{[%clk 0:01:15.2]} 32... Rb5 {[%clk 0:00:11.3]} 33. Ra6 {[%clk 0:01:08.5]} 33...
Bd4 {[%clk 0:00:10.6]} 34. Kf1 {[%clk 0:01:06.9]} 34... g5 {[%clk 0:00:05.6]}
35. Rd6 {[%clk 0:01:00.9]} 35... Be5 {[%clk 0:00:05.8]} 36. Rd7 {[%clk
0:00:59.7]} 36... Bb8 {[%clk 0:00:05.5]} 37. a6 {[%clk 0:00:59]} 37... Rf5
{[%clk 0:00:01.1]} 38. Rd8+ {[%clk 0:00:58.7]} 1-0

[Event "Early-Titled-Tuesday-Blitz-April-16-2024"]
[Site "Chess.com"]
[Date "2024.04.16"]
[Round "7"]
[White "SharapovEvgeny"]
[Black "DanyKopy"]
[Result "1-0"]
[WhiteElo "2660"]
[BlackElo "2535"]
[TimeControl "180+1"]
[EndTime "9:20:40 PDT"]
[Termination "SharapovEvgeny won by checkmate"]

1. e4 {[%clk 0:02:59.3]} 1... c5 {[%clk 0:03:00.1]} 2. Nf3 {[%clk 0:02:59]} 2...
Nc6 {[%clk 0:03:00.6]} 3. d4 {[%clk 0:02:57.9]} 3... cxd4 {[%clk 0:03:01.5]} 4.
Nxd4 {[%clk 0:02:57.8]} 4... e5 {[%clk 0:03:02.1]} 5. Nb5 {[%clk 0:02:57.5]}
5... d6 {[%clk 0:03:02.1]} 6. N1c3 {[%clk 0:02:56.7]} 6... a6 {[%clk 0:03:01.6]}
7. Na3 {[%clk 0:02:56.9]} 7... Be6 {[%clk 0:03:02.2]} 8. Nc4 {[%clk 0:02:56.7]}
8... Rb8 {[%clk 0:03:01.6]} 9. Ne3 {[%clk 0:02:56.8]} 9... Nf6 {[%clk
0:02:59.4]} 10. g3 {[%clk 0:02:57]} 10... g6 {[%clk 0:02:59.1]} 11. Bg2 {[%clk
0:02:56.9]} 11... h5 {[%clk 0:02:59.5]} 12. h4 {[%clk 0:02:56.3]} 12... Bh6
{[%clk 0:02:58.5]} 13. O-O {[%clk 0:02:56]} 13... O-O {[%clk 0:02:58.4]} 14.
Ncd5 {[%clk 0:02:55.6]} 14... Bxd5 {[%clk 0:02:51.6]} 15. Nxd5 {[%clk
0:02:55.4]} 15... Bxc1 {[%clk 0:02:47.3]} 16. Nxf6+ {[%clk 0:02:54.1]} 16...
Qxf6 {[%clk 0:02:46.9]} 17. Rxc1 {[%clk 0:02:54.4]} 17... Rfd8 {[%clk
0:02:40.5]} 18. c3 {[%clk 0:02:54.3]} 18... b5 {[%clk 0:02:38.5]} 19. Qe2 {[%clk
0:02:50.6]} 19... a5 {[%clk 0:02:33.7]} 20. f4 {[%clk 0:02:49.6]} 20... exf4
{[%clk 0:02:25]} 21. Rxf4 {[%clk 0:02:48.6]} 21... Qe7 {[%clk 0:02:23.8]} 22. g4
{[%clk 0:02:30.3]} 22... Qxh4 {[%clk 0:02:16.9]} 23. Rcf1 {[%clk 0:02:25.7]}
23... Ne5 {[%clk 0:02:15.7]} 24. gxh5 {[%clk 0:02:24.2]} 24... Qxh5 {[%clk
0:02:16.1]} 25. Qe3 {[%clk 0:02:14]} 25... b4 {[%clk 0:02:06.1]} 26. cxb4 {[%clk
0:02:08.7]} 26... axb4 {[%clk 0:01:58.3]} 27. Qg3 {[%clk 0:02:07.6]} 27... Rbc8
{[%clk 0:01:49.3]} 28. Rh4 {[%clk 0:02:02.9]} 28... Qe2 {[%clk 0:01:35.5]} 29.
Qh3 {[%clk 0:02:00.5]} 29... Kf8 {[%clk 0:01:25]} 30. Rh8+ {[%clk 0:01:53.7]}
30... Ke7 {[%clk 0:01:24.9]} 31. Qh4+ {[%clk 0:01:54]} 31... Kd7 {[%clk
0:01:10.5]} 32. Bh3+ {[%clk 0:01:53.8]} 32... f5 {[%clk 0:01:02.3]} 33. Rh7+
{[%clk 0:01:37.2]} 33... Kc6 {[%clk 0:00:57.1]} 34. exf5 {[%clk 0:01:27.2]}
34... gxf5 {[%clk 0:00:08.9]} 35. Bg2+ {[%clk 0:01:26.3]} 35... Kb5 {[%clk
0:00:06.1]} 36. Rb7+ {[%clk 0:01:21.2]} 36... Ka6 {[%clk 0:00:06.4]} 37. Rxb4
{[%clk 0:00:55.8]} 37... Rg8 {[%clk 0:00:05.1]} 38. Ra4+ {[%clk 0:00:50.7]}
38... Kb6 {[%clk 0:00:05.4]} 39. Qd4+ {[%clk 0:00:45.1]} 39... Kb5 {[%clk
0:00:04]} 40. Qb4# {[%clk 0:00:43.3]} 1-0

[Event "Early-Titled-Tuesday-Blitz-April-16-2024"]
[Site "Chess.com"]
[Date "2024.04.16"]
[Round "7"]
[White "scarabee43"]
[Black "HajiyevKanan"]
[Result "1/2-1/2"]
[WhiteElo "2825"]
[BlackElo "2632"]
[TimeControl "180+1"]
[EndTime "9:20:42 PDT"]
[Termination "Game drawn by repetition"]

1. Nf3 {[%clk 0:03:00.9]} 1... d5 {[%clk 0:03:00]} 2. e3 {[%clk 0:03:00.8]} 2...
Nf6 {[%clk 0:03:00.6]} 3. b3 {[%clk 0:03:01]} 3... c5 {[%clk 0:03:00.9]} 4. Bb2
{[%clk 0:03:01.6]} 4... Nc6 {[%clk 0:03:01.5]} 5. c4 {[%clk 0:03:02]} 5... e6
{[%clk 0:03:00.6]} 6. cxd5 {[%clk 0:03:01.2]} 6... Nxd5 {[%clk 0:03:00.7]} 7.
Be2 {[%clk 0:02:59.7]} 7... Be7 {[%clk 0:02:55.5]} 8. O-O {[%clk 0:02:56.9]}
8... O-O {[%clk 0:02:55.5]} 9. Nc3 {[%clk 0:02:56.5]} 9... Bf6 {[%clk 0:02:55]}
10. Qc1 {[%clk 0:02:49.9]} 10... b6 {[%clk 0:02:54]} 11. Ne4 {[%clk 0:02:48]}
11... Bxb2 {[%clk 0:02:51.6]} 12. Qxb2 {[%clk 0:02:48.7]} 12... Bb7 {[%clk
0:02:51]} 13. Rac1 {[%clk 0:02:47.7]} 13... Qe7 {[%clk 0:02:49.2]} 14. Rfd1
{[%clk 0:02:39.3]} 14... Rfd8 {[%clk 0:02:48.7]} 15. d4 {[%clk 0:02:38.2]} 15...
cxd4 {[%clk 0:02:47.5]} 16. Nxd4 {[%clk 0:02:38.5]} 16... Nxd4 {[%clk
0:02:46.4]} 17. Rxd4 {[%clk 0:02:38.2]} 17... Nf6 {[%clk 0:02:37.4]} 18. Rxd8+
{[%clk 0:02:31.8]} 18... Rxd8 {[%clk 0:02:38.3]} 19. Nxf6+ {[%clk 0:02:32.1]}
19... Qxf6 {[%clk 0:02:29.4]} 20. Qxf6 {[%clk 0:02:31.3]} 20... gxf6 {[%clk
0:02:30.3]} 21. Rc7 {[%clk 0:02:29.9]} 21... Rd2 {[%clk 0:02:30.3]} 22. Bh5
{[%clk 0:02:23.2]} 22... Rxa2 {[%clk 0:02:24.3]} 23. h4 {[%clk 0:02:18.8]} 23...
Bd5 {[%clk 0:02:20]} 24. Bxf7+ {[%clk 0:02:13.2]} 24... Kf8 {[%clk 0:02:05.2]}
25. b4 {[%clk 0:02:12.6]} 25... a5 {[%clk 0:01:45.4]} 26. bxa5 {[%clk
0:02:12.1]} 26... bxa5 {[%clk 0:01:45.9]} 27. Bh5 {[%clk 0:02:10.9]} 27... h6
{[%clk 0:01:46.1]} 28. Rf7+ {[%clk 0:02:10.6]} 28... Kg8 {[%clk 0:01:45.9]} 29.
Rxf6 {[%clk 0:02:11.1]} 29... a4 {[%clk 0:01:35.8]} 30. Bf3 {[%clk 0:01:41.7]}
30... Bb3 {[%clk 0:01:09.8]} 31. Rg6+ {[%clk 0:01:40.8]} 31... Kh7 {[%clk
0:00:58.4]} 32. Be4 {[%clk 0:01:40.3]} 32... Ra1+ {[%clk 0:00:42.4]} 33. Kh2
{[%clk 0:01:39.9]} 33... a3 {[%clk 0:00:38.6]} 34. Rxe6+ {[%clk 0:01:37.4]}
34... Kg7 {[%clk 0:00:39.2]} 35. Rg6+ {[%clk 0:01:08.6]} 35... Kf8 {[%clk
0:00:36.1]} 36. Rb6 {[%clk 0:01:06.6]} 36... Bf7 {[%clk 0:00:26.8]} 37. Bg6
{[%clk 0:00:56.3]} 37... a2 {[%clk 0:00:20.6]} 38. Bxf7 {[%clk 0:00:47.8]} 38...
Rh1+ {[%clk 0:00:20.4]} 39. Kxh1 {[%clk 0:00:48.4]} 39... a1=Q+ {[%clk 0:00:21]}
40. Kh2 {[%clk 0:00:49]} 40... Kxf7 {[%clk 0:00:13.5]} 41. Rxh6 {[%clk
0:00:49.5]} 41... Qe5+ {[%clk 0:00:12.4]} 42. Kg1 {[%clk 0:00:49.1]} 42... Qa1+
{[%clk 0:00:12.4]} 43. Kh2 {[%clk 0:00:49.3]} 43... Qe5+ {[%clk 0:00:12.8]} 44.
Kg1 {[%clk 0:00:42.4]} 44... Qa1+ {[%clk 0:00:12.7]} 45. Kh2 {[%clk 0:00:42.8]}
1/2-1/2

[Event "Early-Titled-Tuesday-Blitz-April-16-2024"]
[Site "Chess.com"]
[Date "2024.04.16"]
[Round "7"]
[White "NikitaShnadrygin"]
[Black "Payyappat"]
[Result "1-0"]
[WhiteElo "2744"]
[BlackElo "2541"]
[TimeControl "180+1"]
[EndTime "9:20:46 PDT"]
[Termination "NikitaShnadrygin won by checkmate"]

1. e4 {[%clk 0:03:00.9]} 1... c6 {[%clk 0:02:59.6]} 2. d4 {[%clk 0:03:01]} 2...
d5 {[%clk 0:02:57.5]} 3. f3 {[%clk 0:03:01.6]} 3... Qb6 {[%clk 0:02:53.9]} 4.
Nc3 {[%clk 0:02:52]} 4... dxe4 {[%clk 0:02:53]} 5. fxe4 {[%clk 0:02:51.5]} 5...
e5 {[%clk 0:02:53.1]} 6. Nf3 {[%clk 0:02:48.3]} 6... exd4 {[%clk 0:02:52.7]} 7.
Qxd4 {[%clk 0:02:49.2]} 7... Nf6 {[%clk 0:02:24.5]} 8. e5 {[%clk 0:02:41.8]}
8... Bc5 {[%clk 0:02:19.4]} 9. Qd2 {[%clk 0:02:24.1]} 9... Ng4 {[%clk 0:02:11]}
10. Ne4 {[%clk 0:02:18.5]} 10... O-O {[%clk 0:02:03.8]} 11. Bd3 {[%clk
0:01:22.4]} 11... Be3 {[%clk 0:01:55.4]} 12. Qe2 {[%clk 0:01:19.1]} 12... Bxc1
{[%clk 0:01:51]} 13. Rxc1 {[%clk 0:01:20]} 13... Qxb2 {[%clk 0:01:50.3]} 14. O-O
{[%clk 0:01:19.4]} 14... Qb6+ {[%clk 0:01:43.1]} 15. Kh1 {[%clk 0:01:13.8]}
15... Bf5 {[%clk 0:01:38.7]} 16. Nf6+ {[%clk 0:01:05.8]} 16... Nxf6 {[%clk
0:01:26.1]} 17. Bxf5 {[%clk 0:00:49.3]} 17... Nd5 {[%clk 0:01:22.2]} 18. Bxh7+
{[%clk 0:00:49.1]} 18... Kxh7 {[%clk 0:01:06]} 19. Ng5+ {[%clk 0:00:49.2]} 19...
Kh6 {[%clk 0:01:04.3]} 20. Qg4 {[%clk 0:00:34.4]} 20... f5 {[%clk 0:00:26]} 21.
Qh4+ {[%clk 0:00:17]} 21... Kg6 {[%clk 0:00:26]} 22. Qh7+ {[%clk 0:00:14.4]}
22... Kxg5 {[%clk 0:00:26.9]} 23. Qxg7+ {[%clk 0:00:14.8]} 23... Kh5 {[%clk
0:00:26.2]} 24. Rf3 {[%clk 0:00:10.1]} 24... Nf4 {[%clk 0:00:16.2]} 25. Rxf4
{[%clk 0:00:10.4]} 25... Qe3 {[%clk 0:00:14.9]} 26. Rcf1 {[%clk 0:00:09.4]}
26... Nd7 {[%clk 0:00:12.5]} 27. Rxf5+ {[%clk 0:00:08.4]} 27... Rxf5 {[%clk
0:00:11.8]} 28. Rxf5+ {[%clk 0:00:09.3]} 28... Kh4 {[%clk 0:00:12]} 29. Qh7+
{[%clk 0:00:09.1]} 29... Kg4 {[%clk 0:00:12]} 30. Qh5# {[%clk 0:00:09.4]} 1-0

[Event "Early-Titled-Tuesday-Blitz-April-16-2024"]
[Site "Chess.com"]
[Date "2024.04.16"]
[Round "7"]
[White "alexrustemov"]
[Black "AsselLesbekova"]
[Result "1-0"]
[WhiteElo "2849"]
[BlackElo "2434"]
[TimeControl "180+1"]
[EndTime "9:20:48 PDT"]
[Termination "alexrustemov won by resignation"]

1. d4 {[%clk 0:03:00.9]} 1... d5 {[%clk 0:02:59.6]} 2. c4 {[%clk 0:03:01.4]}
2... e6 {[%clk 0:03:00.1]} 3. Nc3 {[%clk 0:03:01.9]} 3... a6 {[%clk 0:03:00.3]}
4. cxd5 {[%clk 0:03:01.3]} 4... exd5 {[%clk 0:03:01.2]} 5. Nf3 {[%clk
0:03:00.6]} 5... c6 {[%clk 0:03:01.4]} 6. Bf4 {[%clk 0:02:57.1]} 6... Bd6 {[%clk
0:03:01.4]} 7. Bxd6 {[%clk 0:02:56.4]} 7... Qxd6 {[%clk 0:03:02.3]} 8. Qb3
{[%clk 0:02:53.6]} 8... Ne7 {[%clk 0:02:57.8]} 9. e3 {[%clk 0:02:53.5]} 9... O-O
{[%clk 0:02:54.3]} 10. Bd3 {[%clk 0:02:53.6]} 10... b5 {[%clk 0:02:51.3]} 11.
O-O {[%clk 0:02:50.2]} 11... Bf5 {[%clk 0:02:51.2]} 12. Bxf5 {[%clk 0:02:40]}
12... Nxf5 {[%clk 0:02:52.1]} 13. Rfc1 {[%clk 0:02:38.6]} 13... Nd7 {[%clk
0:02:47.4]} 14. Ne2 {[%clk 0:02:34.2]} 14... Ne7 {[%clk 0:02:29.3]} 15. Nf4
{[%clk 0:02:30.2]} 15... h6 {[%clk 0:02:24.9]} 16. Nd3 {[%clk 0:02:29.3]} 16...
Rfc8 {[%clk 0:02:20.1]} 17. Nc5 {[%clk 0:02:28]} 17... Nb6 {[%clk 0:02:13.2]}
18. Qd3 {[%clk 0:02:20.5]} 18... Qg6 {[%clk 0:01:52]} 19. Qxg6 {[%clk
0:02:17.7]} 19... Nxg6 {[%clk 0:01:52.9]} 20. b3 {[%clk 0:02:16.3]} 20... a5
{[%clk 0:01:41.2]} 21. a4 {[%clk 0:02:10.2]} 21... Rc7 {[%clk 0:01:31.7]} 22.
Rc2 {[%clk 0:01:55.8]} 22... Kf8 {[%clk 0:01:16.4]} 23. h4 {[%clk 0:01:53.2]}
23... h5 {[%clk 0:01:09.2]} 24. axb5 {[%clk 0:01:52.6]} 24... cxb5 {[%clk
0:01:08.9]} 25. Ne6+ {[%clk 0:01:51.7]} 25... fxe6 {[%clk 0:01:05.5]} 26. Rxc7
{[%clk 0:01:52.3]} 26... a4 {[%clk 0:00:53.5]} 27. bxa4 {[%clk 0:01:46.1]} 27...
bxa4 {[%clk 0:00:45.8]} 28. Rc6 {[%clk 0:01:44.6]} 28... Nc4 {[%clk 0:00:36]}
29. Rxe6 {[%clk 0:01:43.6]} 29... Ne7 {[%clk 0:00:32.4]} 30. Ne5 {[%clk
0:01:37.7]} 30... Nd2 {[%clk 0:00:28]} 31. Ra2 {[%clk 0:01:26.2]} 31... Ne4
{[%clk 0:00:24.4]} 32. Rb6 {[%clk 0:01:19.9]} 32... Nc8 {[%clk 0:00:20.4]} 33.
Rb4 {[%clk 0:01:17.5]} 33... Nc3 {[%clk 0:00:19.7]} 34. Ra3 {[%clk 0:01:15.6]}
34... Ne4 {[%clk 0:00:18.9]} 35. Rbxa4 {[%clk 0:01:14.8]} 35... Rxa4 {[%clk
0:00:17.1]} 36. Rxa4 {[%clk 0:01:14.9]} 36... Ke7 {[%clk 0:00:15.2]} 37. Ng6+
{[%clk 0:01:09.9]} 37... Kf6 {[%clk 0:00:14.8]} 38. Nf4 {[%clk 0:01:10.8]} 38...
Ne7 {[%clk 0:00:09.3]} 39. Nxh5+ {[%clk 0:01:10.2]} 39... Kg6 {[%clk 0:00:08.4]}
40. Nf4+ {[%clk 0:01:10.2]} 40... Kf5 {[%clk 0:00:08.2]} 41. Ra5 {[%clk
0:01:07.6]} 41... Nc3 {[%clk 0:00:08]} 42. f3 {[%clk 0:01:04.7]} 42... g5 {[%clk
0:00:07.7]} 43. hxg5 {[%clk 0:01:04.1]} 43... Kxg5 {[%clk 0:00:08.6]} 44. Kf2
{[%clk 0:01:03.3]} 44... Nd1+ {[%clk 0:00:07.6]} 45. Ke2 {[%clk 0:01:02.4]}
45... Nc3+ {[%clk 0:00:06.4]} 46. Kd2 {[%clk 0:01:01.7]} 1-0

[Event "Early-Titled-Tuesday-Blitz-April-16-2024"]
[Site "Chess.com"]
[Date "2024.04.16"]
[Round "7"]
[White "BashiqChess"]
[Black "MikhailBLR"]
[Result "0-1"]
[WhiteElo "2452"]
[BlackElo "2331"]
[TimeControl "180+1"]
[EndTime "9:20:48 PDT"]
[Termination "MikhailBLR won by resignation"]

1. Nf3 {[%clk 0:03:00.9]} 1... Nf6 {[%clk 0:02:59.5]} 2. b3 {[%clk 0:03:00.8]}
2... d5 {[%clk 0:02:58.1]} 3. Bb2 {[%clk 0:03:00.7]} 3... Bg4 {[%clk 0:02:58.6]}
4. g3 {[%clk 0:03:01]} 4... Bxf3 {[%clk 0:02:58.7]} 5. exf3 {[%clk 0:03:01.4]}
5... e6 {[%clk 0:02:59]} 6. Bg2 {[%clk 0:03:02.1]} 6... Be7 {[%clk 0:02:59.6]}
7. O-O {[%clk 0:03:02.8]} 7... O-O {[%clk 0:03:00.3]} 8. f4 {[%clk 0:03:03.2]}
8... c5 {[%clk 0:03:00.9]} 9. d3 {[%clk 0:03:01.8]} 9... Nc6 {[%clk 0:03:01.1]}
10. Nd2 {[%clk 0:03:02]} 10... b5 {[%clk 0:03:01.7]} 11. Nf3 {[%clk 0:03:02.6]}
11... a5 {[%clk 0:02:58.7]} 12. Ne5 {[%clk 0:03:02.7]} 12... Qb6 {[%clk
0:02:56.4]} 13. Nxc6 {[%clk 0:03:01.8]} 13... Qxc6 {[%clk 0:02:56.5]} 14. c4
{[%clk 0:03:02.6]} 14... Rab8 {[%clk 0:02:40.7]} 15. Rc1 {[%clk 0:03:01.3]}
15... Qd7 {[%clk 0:02:40.1]} 16. Bxf6 {[%clk 0:02:57.9]} 16... gxf6 {[%clk
0:02:21.2]} 17. Qg4+ {[%clk 0:02:57.6]} 17... Kh8 {[%clk 0:02:20.5]} 18. cxd5
{[%clk 0:02:58.2]} 18... f5 {[%clk 0:02:13.6]} 19. Qf3 {[%clk 0:02:58.1]} 19...
Rfd8 {[%clk 0:02:09.8]} 20. dxe6 {[%clk 0:02:56.2]} 20... Qxd3 {[%clk
0:02:01.5]} 21. exf7 {[%clk 0:02:47.1]} 21... Qxf3 {[%clk 0:02:01.1]} 22. Bxf3
{[%clk 0:02:48]} 22... Kg7 {[%clk 0:02:01.2]} 23. Rfd1 {[%clk 0:02:45.6]} 23...
Kxf7 {[%clk 0:01:58.8]} 24. Be2 {[%clk 0:02:42.7]} 24... Rxd1+ {[%clk
0:01:51.6]} 25. Rxd1 {[%clk 0:02:43.6]} 25... a4 {[%clk 0:01:52]} 26. Rd5 {[%clk
0:02:18.6]} 26... Ke6 {[%clk 0:01:38.1]} 27. Re5+ {[%clk 0:02:18]} 27... Kf6
{[%clk 0:01:38.7]} 28. Bd3 {[%clk 0:02:18.4]} 28... Bd6 {[%clk 0:01:13.1]} 29.
Rxf5+ {[%clk 0:02:16.5]} 29... Ke6 {[%clk 0:01:13.7]} 30. Rh5 {[%clk 0:02:14.1]}
30... Rb7 {[%clk 0:01:02.3]} 31. Rxh7 {[%clk 0:02:11]} 31... Rxh7 {[%clk
0:00:54.4]} 32. Bxh7 {[%clk 0:02:11.9]} 32... Kd5 {[%clk 0:00:55]} 33. Bc2
{[%clk 0:01:45.7]} 33... a3 {[%clk 0:00:52.9]} 34. Kf1 {[%clk 0:01:37.8]} 34...
Kd4 {[%clk 0:00:53.3]} 35. h4 {[%clk 0:01:24.9]} 35... Kc3 {[%clk 0:00:50.5]}
36. h5 {[%clk 0:00:29.1]} 36... Kxc2 {[%clk 0:00:25.2]} 37. g4 {[%clk
0:00:17.3]} 37... Bxf4 {[%clk 0:00:23.6]} 0-1